bitfinex-derivatives/quotes_ETHF0:USTF0_20260223
["timestamp","ask_amount","ask_price","bid_price","bid_amount"]
[1771890638436,6.82502524,1854.7,1854.0,2.55837731]
[1771890638637,0.48567614,1854.6,1854.0,2.55837731]
[1771890638837,2.55837731,1854.9,1854.0,2.55837731]
[1771890639041,6.82588869,1854.8,1854.0,2.55837731]
[1771890639339,6.82588869,1854.7,1854.0,2.55837731]
[1771890639540,2.55837731,1854.9,1854.2,2.55837731]
[1771890639740,6.82666642,1854.8,1854.2,2.55837731]
[1771890640037,6.82666642,1854.7,1854.2,2.55837731]
[1771890640241,2.55837731,1854.9,1854.2,2.55837731]
[1771890640441,6.82531209,1854.8,1854.2,2.55837731]
[1771890640640,6.82531209,1854.7,1854.2,2.55837731]
[1771890640934,2.55837731,1854.9,1854.2,2.55837731]
[1771890641138,6.82516194,1854.8,1854.2,2.55837731]
[1771890641336,6.82516194,1854.7,1854.2,2.55837731]
[1771890641533,2.55837731,1854.9,1854.2,2.55837731]
[1771890641741,6.82626483,1854.8,1854.2,2.55837731]
[1771890641941,6.82626483,1854.7,1854.2,2.55837731]
[1771890642141,2.55837731,1854.9,1854.2,2.55837731]
[1771890642343,6.82602889,1854.8,1854.2,2.55837731]
[1771890642639,6.82684712,1854.7,1854.2,2.55837731]
[1771890642834,2.55837731,1854.9,1854.2,2.55837731]
[1771890643036,6.82816089,1854.8,1854.2,2.55837731]
[1771890643243,0.48586885,1854.7,1854.2,2.55837731]
[1771890643535,2.55837731,1854.9,1854.2,2.55837731]
[1771890643741,6.82793709,1854.8,1854.2,2.55837731]
[1771890643940,0.48585586,1854.7,1854.2,2.55837731]
[1771890644140,2.55837731,1854.9,1854.2,2.55837731]
[1771890644337,6.7132562,1855.2,1854.2,2.55837731]
[1771890644338,6.82770406,1854.8,1854.2,2.55837731]
[1771890644637,0.48584664,1854.7,1854.2,2.55837731]
[1771890644834,7.04130364,1855.1,1854.2,2.55837731]
[1771890645038,6.82780573,1855.0,1854.4,2.55837731]
[1771890645341,6.82780573,1854.9,1854.4,2.55837731]
[1771890645641,4.48292633,1855.2,1854.4,2.55837731]
[1771890645834,6.82670527,1855.1,1854.4,2.55837731]
[1771890646035,6.82670527,1855.0,1854.4,2.55837731]
[1771890646231,0.00629082,1855.3,1854.6,2.55837731]
[1771890646435,6.82598858,1855.2,1854.6,2.55837731]
[1771890646632,0.00629082,1855.3,1854.6,2.55837731]
[1771890646839,6.82598786,1855.2,1854.6,2.55837731]
[1771890647042,0.00629082,1855.3,1854.6,2.55837731]
[1771890647237,0.4856726,1855.2,1854.6,2.55837731]
[1771890647438,0.00629082,1855.3,1854.6,2.55837731]
[1771890647636,0.48540705,1855.2,1854.6,2.55837731]
[1771890647842,0.00629082,1855.3,1854.6,2.55837731]
[1771890648141,0.48540771,1855.2,1854.6,2.55837731]
[1771890648342,0.00629082,1855.3,1854.6,2.55837731]
[1771890648641,0.48522388,1855.2,1854.6,2.55837731]
[1771890648842,0.00629082,1855.3,1854.6,2.55837731]
[1771890649743,2.56466813,1855.3,1854.4,2.55837731]
[1771890660751,2.55837731,1855.1,1854.1,2.82811731]
[1771890660954,2.55837731,1854.7,1853.9,2.55837731]
[1771890661245,2.55837731,1855.1,1853.7,41.0698]
[1771890661246,2.56006452,1855.1,1854.0,6.90494813]
[1771890661452,6.79589038,1855.0,1854.0,6.90494813]
[1771890661751,2.56006452,1855.1,1853.7,41.0698]
[1771890661952,6.79595679,1855.0,1853.7,41.0698]
[1771890662152,0.4838575,1854.9,1853.9,7.09009218]
[1771890662451,2.56006452,1855.1,1853.7,41.0698]
[1771890662651,6.79618901,1855.0,1854.0,7.09009218]
[1771890662851,0.48388438,1854.9,1854.0,7.09009218]
[1771890663048,2.56006452,1855.1,1853.7,41.0698]
[1771890663250,6.79640033,1855.0,1853.7,41.0698]
[1771890663450,9.35646485,1854.9,1854.0,6.93969534]
[1771890663649,6.79617341,1854.8,1853.7,41.0698]
[1771890663851,2.56006452,1854.9,1853.7,41.0698]
[1771890664052,6.79616676,1854.8,1853.7,41.0698]
[1771890664257,2.56006452,1854.9,1853.7,41.0698]
[1771890664452,6.79631501,1854.8,1853.7,41.0698]
[1771890664652,2.56006452,1854.9,1853.7,41.0698]
[1771890664854,6.79866466,1854.8,1853.7,41.0698]
[1771890665056,2.56006452,1854.9,1853.7,41.0698]
[1771890665255,6.79827474,1854.8,1853.7,41.0698]
[1771890665555,2.56006452,1854.9,1853.7,41.0698]
[1771890665756,6.79606447,1854.8,1853.7,41.0698]
[1771890665957,2.56006452,1854.9,1853.7,41.0698]
[1771890666261,6.79589418,1854.8,1853.7,41.0698]
[1771890666453,2.56006452,1854.9,1853.7,41.0698]
[1771890666652,6.79358577,1854.8,1853.7,41.0698]
[1771890666857,2.56006452,1854.7,1853.7,41.0698]
[1771890670659,2.56006452,1854.7,1853.7,0.2698]
[1771890673563,2.82970452,1854.9,1853.7,0.2698]
[1771890673763,6.7888185,1854.8,1853.7,0.2698]
[1771890673964,0.48338174,1854.7,1853.7,0.2698]
[1771890674165,2.82970452,1854.9,1853.7,0.2698]
[1771890674364,6.78845121,1854.8,1853.7,0.2698]
[1771890674563,0.26964,1854.9,1853.7,0.2698]
[1771890674765,6.78799368,1854.8,1853.7,0.2698]
[1771890674965,0.26964,1854.9,1853.7,0.2698]
[1771890675263,6.78795503,1854.8,1853.7,0.2698]
[1771890675465,0.26964,1854.9,1853.7,0.2698]
[1771890675659,0.26966,1854.7,1853.6,40.8]
[1771890675864,2.56006452,1854.5,1853.5,0.00512384]
[1771890676062,2.56006452,1854.0,1852.9,0.26992]
[1771890676463,2.56006452,1853.8,1852.9,7.12979234]
[1771890676673,2.56006452,1853.8,1852.8,0.01]
[1771890676873,0.26978,1853.9,1852.8,0.01]
[1771890677073,0.27665746,1853.9,1852.8,0.0164108]
[1771890678270,0.00687746,1853.9,1852.9,6.87716971]
[1771890681980,0.00687746,1853.9,1853.0,40.8]
[1771890682880,0.00687746,1853.9,1853.1,7.38759617]
[1771890686482,2.56006452,1854.6,1853.3,2.56006452]
[1771890686783,6.763324,1854.5,1853.4,7.02450513]
[1771890686983,2.56006452,1854.6,1853.4,7.02450513]
[1771890687182,6.76527183,1854.5,1853.4,7.02450513]
[1771890687477,2.56006452,1854.6,1853.4,7.02450513]
[1771890687681,6.77194894,1854.5,1853.4,7.02450513]
[1771890687882,0.00609615,1854.5,1853.4,7.02450513]
[1771890693680,0.27579615,1854.5,1853.4,7.02450513]
[1771890694088,0.48223562,1854.4,1853.4,7.02450513]
[1771890694288,0.27579615,1854.5,1853.4,7.02450513]
[1771890694489,6.77686562,1854.4,1853.4,7.02450513]
[1771890694788,0.27579615,1854.5,1853.4,7.02450513]
[1771890695087,6.77674022,1854.4,1853.4,7.02450513]
[1771890695389,0.27579615,1854.5,1853.4,7.02450513]
[1771890695686,6.77935605,1854.4,1853.4,7.02450513]
[1771890695886,0.27579615,1854.5,1853.4,7.02450513]
[1771890696086,0.48256899,1854.4,1853.4,7.02450513]
[1771890696388,0.27579615,1854.5,1853.4,7.02450513]
[1771890696588,0.48257728,1854.4,1853.4,7.02450513]
[1771890696783,0.27579615,1854.5,1853.4,7.02450513]
[1771890696991,6.78209953,1854.4,1853.4,7.02450513]
[1771890697188,0.27579615,1854.5,1853.4,7.02450513]
[1771890697489,6.78340621,1854.4,1853.4,7.02450513]
[1771890697690,0.27579615,1854.5,1853.4,7.02450513]
[1771890697989,6.78336138,1854.4,1853.4,7.02450513]
[1771890698284,0.27579615,1854.5,1853.4,7.02450513]
[1771890698590,6.78484444,1854.4,1853.4,7.02450513]
[1771890698787,0.27579615,1854.5,1853.4,7.02450513]
[1771890698984,6.78485411,1854.4,1853.4,7.02450513]
[1771890699184,0.27579615,1854.5,1853.4,7.02450513]
[1771890699385,6.78498723,1854.4,1853.4,7.02450513]
[1771890699688,0.27579615,1854.5,1853.4,7.02450513]
[1771890699890,6.78616877,1854.4,1853.4,7.02450513]
[1771890700091,0.27579615,1854.5,1853.4,7.02450513]
[1771890700282,6.78590588,1854.4,1853.4,7.02450513]
[1771890700487,0.27579615,1854.5,1853.4,7.02450513]
[1771890700688,6.78726224,1854.4,1853.4,7.02450513]
[1771890700991,0.27579615,1854.5,1853.4,7.02450513]
[1771890701189,6.7872623,1854.4,1853.4,7.02450513]
[1771890701390,0.48293959,1854.3,1853.4,7.02450513]
[1771890701590,0.27579615,1854.5,1853.4,7.02450513]
[1771890701889,6.78926311,1854.4,1853.4,7.02450513]
[1771890702090,0.4831015,1854.3,1853.4,7.02450513]
[1771890702390,0.27579615,1854.5,1853.4,7.02450513]
[1771890702591,6.79141294,1854.4,1853.4,7.02450513]
[1771890702892,0.4832541,1854.3,1853.4,7.02450513]
[1771890703190,0.27579615,1854.5,1853.4,7.02450513]
[1771890703391,6.79576337,1854.4,1853.4,7.02450513]
[1771890703592,6.79576337,1854.3,1853.4,7.02450513]
[1771890703792,0.27579615,1854.5,1853.4,7.02450513]
[1771890704091,6.79762197,1854.4,1853.4,7.02450513]
[1771890704287,6.79762197,1854.3,1853.4,7.02450513]
[1771890704492,0.27579615,1854.5,1853.4,7.02450513]
[1771890704792,6.79983444,1854.4,1853.4,7.02450513]
[1771890705091,6.79983444,1854.3,1853.4,7.02450513]
[1771890705291,0.27579615,1854.5,1853.4,7.02450513]
[1771890705487,6.80303211,1854.4,1853.4,7.02450513]
[1771890705792,2.56006452,1854.1,1853.1,0.26989]
[1771890706191,2.56006452,1854.1,1853.2,7.12427772]
[1771890706687,0.26973,1854.2,1853.2,7.12427772]
[1771890706883,6.80305276,1854.1,1853.2,7.12427772]
[1771890707088,2.56006452,1854.3,1853.2,7.12427772]
[1771890707089,4.47464573,1854.5,1853.3,0.26986]
[1771890707288,6.80330867,1854.4,1853.3,0.26986]
[1771890707595,6.80330867,1854.3,1853.3,0.26986]
[1771890707795,6.80330867,1854.2,1853.3,0.26986]
[1771890708095,0.4843497,1854.1,1853.3,0.26986]
[1771890708289,4.47464573,1854.5,1853.3,0.26986]
[1771890708494,6.80639604,1854.4,1853.3,0.26986]
[1771890708693,6.80639604,1854.3,1853.3,0.26986]
[1771890708887,6.80639604,1854.2,1853.3,0.26986]
[1771890709092,0.48434852,1854.1,1853.3,0.26986]
[1771890709393,4.47464573,1854.5,1853.3,0.26986]
[1771890709594,6.8054695,1854.4,1853.3,0.26986]
[1771890709794,6.8054695,1854.3,1853.3,0.26986]
[1771890709995,6.8054695,1854.2,1853.3,0.26986]
[1771890710197,0.48428112,1854.1,1853.3,0.26986]
[1771890710397,4.47464573,1854.5,1853.3,0.26986]
[1771890710694,6.80653214,1854.4,1853.3,0.26986]
[1771890710996,6.80653214,1854.3,1853.4,7.11946341]
[1771890711198,6.80653214,1854.2,1853.4,7.11946341]
[1771890711392,6.80793703,1854.1,1853.4,7.11946341]
[1771890711596,7.03471025,1854.5,1853.4,7.11946341]
[1771890711798,6.80796527,1854.4,1853.4,7.11946341]
[1771890711997,6.80796527,1854.3,1853.4,7.11946341]
[1771890712198,6.80796527,1854.2,1853.4,7.11946341]
[1771890712399,6.8105867,1854.1,1853.4,7.11946341]
[1771890712599,4.46854958,1854.4,1853.4,7.11946341]
[1771890712801,0.48464129,1854.3,1853.4,7.11946341]
[1771890713001,6.81063955,1854.2,1853.4,7.11946341]
[1771890713203,6.81063955,1854.1,1853.4,7.11946341]
[1771890713501,4.47464573,1854.5,1853.4,7.11946341]
[1771890713701,0.48472301,1854.4,1853.4,7.11946341]
[1771890714001,6.81183692,1854.3,1853.4,7.11946341]
[1771890714200,0.48472301,1854.2,1853.4,7.11946341]
[1771890714401,0.00609615,1854.5,1853.4,7.11946341]
[1771890714699,6.81218562,1854.4,1853.4,7.11946341]
[1771890714900,6.81218562,1854.3,1853.4,7.11946341]
[1771890715100,0.48474523,1854.2,1853.4,7.11946341]
[1771890715303,0.00609615,1854.5,1853.4,7.11946341]
[1771890715505,6.81255861,1854.4,1853.4,7.11946341]
[1771890715802,6.81255861,1854.3,1853.4,7.11946341]
[1771890715999,0.48476886,1854.2,1853.4,7.11946341]
[1771890716202,0.00609615,1854.5,1853.4,7.11946341]
[1771890716402,6.81262117,1854.4,1853.4,7.11946341]
[1771890716603,6.81262117,1854.3,1853.4,7.11946341]
[1771890716904,0.48483143,1854.2,1853.4,7.11946341]
[1771890717200,0.00609615,1854.5,1853.4,7.11946341]
[1771890717400,6.81329739,1854.4,1853.4,7.11946341]
[1771890717602,6.81329739,1854.3,1853.4,7.11946341]
[1771890717808,0.48482876,1854.2,1853.4,7.11946341]
[1771890718100,0.00609615,1854.5,1853.4,7.11946341]
[1771890718301,6.81330417,1854.4,1853.4,7.11946341]
[1771890718502,6.81330417,1854.3,1853.4,7.11946341]
[1771890718696,0.48483162,1854.2,1853.4,7.11946341]
[1771890719004,0.00609615,1854.5,1853.4,7.11946341]
[1771890719301,6.8132417,1854.4,1853.4,7.11946341]
[1771890719501,6.8132417,1854.3,1853.4,7.11946341]
[1771890719705,0.4848317,1854.2,1853.4,7.11946341]
[1771890719895,0.00609615,1854.5,1853.4,7.11946341]
[1771890720202,6.81312033,1854.4,1853.4,7.11946341]
[1771890720504,6.81312033,1854.3,1853.5,0.26984]
[1771890720705,0.00609615,1854.5,1853.5,2.82990452]
[1771890720908,6.81344171,1854.4,1853.5,2.82990452]
[1771890721105,0.00609615,1854.5,1853.5,2.82990452]
[1771890721407,6.81337626,1854.4,1853.6,2.56099085]
[1771890721702,0.48477957,1854.3,1853.6,2.56099085]
[1771890722004,2.567087,1854.5,1853.6,2.56099085]
[1771890722200,0.48477691,1854.4,1854.0,2.56099085]
[1771890722513,0.00609615,1854.5,1853.9,2.56099085]
[1771890723610,1.69065878,1855.0,1854.3,2.56099085]
[1771890723803,6.8109254,1854.9,1854.1,2.56099085]
[1771890724002,6.8109254,1854.8,1854.1,2.56099085]
[1771890724203,1.69065878,1855.0,1854.1,2.56099085]
[1771890724402,6.80731461,1854.9,1854.1,2.56099085]
[1771890724701,6.80731461,1854.8,1854.1,2.56717819]
[1771890724896,0.00536814,1854.9,1854.1,2.56717819]
[1771890725100,0.48437295,1854.8,1854.1,2.56717819]
[1771890725310,0.00536814,1854.9,1854.1,2.56717819]
[1771890725509,0.48413619,1854.8,1854.1,2.56717819]
[1771890725808,0.00536814,1854.9,1854.1,2.56717819]
[1771890726010,0.48413629,1854.8,1854.1,2.56717819]
[1771890726309,0.00536814,1854.9,1854.1,2.56717819]
[1771890727303,2.56635899,1854.9,1854.1,2.56717819]
[1771890728605,0.00536814,1854.9,1854.1,2.56717819]
[1771890731208,2.56099085,1854.8,1854.1,2.56717819]
[1771890731408,2.56099085,1854.6,1854.1,0.00618734]
[1771890733207,2.56099085,1854.2,1853.3,2.56099085]
[1771890733603,2.56099085,1854.2,1853.3,9.63433571]
[1771890733809,2.56099085,1854.6,1853.2,2.56099085]
[1771890733810,2.56099085,1854.0,1853.2,2.56099085]
[1771890734010,2.56099085,1854.0,1853.2,2.5676769]
[1771890735612,2.56099085,1854.0,1853.2,0.00668605]
[1771890739718,2.56099085,1854.0,1853.2,2.5676769]
[1771890740620,2.56099085,1854.2,1853.2,2.5676769]
[1771890741616,2.83070085,1854.4,1853.4,2.56099085]
[1771890742026,2.56099085,1854.2,1853.4,2.56099085]
[1771890744429,2.56099085,1854.4,1853.4,2.56099085]
[1771890749025,2.56099085,1854.2,1853.4,2.56099085]
[1771890749825,2.56099085,1854.0,1853.3,0.26986]
[1771890750226,2.56099085,1853.8,1853.2,0.00668605]
[1771890751927,2.56099085,1854.0,1853.2,0.00668605]
[1771890752727,2.56099085,1854.0,1853.2,2.5676769]
[1771890752927,2.83073085,1854.2,1853.2,2.5676769]
[1771890753327,2.56099085,1854.2,1853.4,2.56099085]
[1771890757628,2.56099085,1854.2,1853.2,2.8375469]
[1771890757932,2.56099085,1853.8,1853.2,0.00668605]
[1771890759537,2.56099085,1854.0,1853.2,0.00668605]
[1771890759835,2.56099085,1854.0,1853.2,2.5676769]
[1771890762238,2.56099085,1854.0,1853.3,6.86042783]
[1771890762833,0.26973,1854.3,1853.3,6.86042783]
[1771890763138,2.56099085,1854.0,1853.3,6.86042783]
[1771890766341,2.56099085,1854.2,1853.3,6.86042783]
[1771890766540,6.76810807,1854.1,1853.3,6.86042783]
[1771890766740,0.48388083,1854.0,1853.3,6.86042783]
[1771890766942,2.56099085,1854.2,1853.3,6.86042783]
[1771890767142,6.76809188,1854.1,1853.3,6.86042783]
[1771890767341,0.48387958,1854.0,1853.3,6.86042783]
[1771890767640,2.56099085,1854.2,1853.3,6.86042783]
[1771890767843,6.76001756,1854.1,1853.3,6.86042783]
[1771890768042,6.76001756,1854.0,1853.3,6.86042783]
[1771890768238,2.56099085,1854.2,1853.3,6.86042783]
[1771890768444,6.75825992,1854.1,1853.3,6.86042783]
[1771890768646,6.75825992,1854.0,1853.3,6.86042783]
[1771890768841,2.56099085,1854.2,1853.3,6.86042783]
[1771890769042,6.75825343,1854.1,1853.3,6.86042783]
[1771890769341,6.75825343,1854.0,1853.3,6.86042783]
[1771890769542,2.56099085,1854.2,1853.3,6.86042783]
[1771890769745,6.75773356,1854.1,1853.3,6.86042783]
[1771890769943,6.75773356,1854.0,1853.3,6.86042783]
[1771890770145,2.56099085,1854.2,1853.3,6.86042783]
[1771890770345,6.7562196,1854.1,1853.3,6.86042783]
[1771890770646,6.7562196,1854.0,1853.3,6.86042783]
[1771890770845,2.56099085,1854.2,1853.3,6.86042783]
[1771890771045,6.75550088,1854.1,1853.3,6.86042783]
[1771890771242,6.75550088,1854.0,1853.3,6.86042783]
[1771890771443,2.56099085,1854.2,1853.3,6.86042783]
[1771890771746,6.75615158,1854.1,1853.3,6.86042783]
[1771890771947,6.75615158,1854.0,1853.3,6.86042783]
[1771890772148,2.56099085,1854.2,1853.3,6.86042783]
[1771890772343,6.75670838,1854.1,1853.3,6.86042783]
[1771890772548,6.75670838,1854.0,1853.3,6.86042783]
[1771890772747,2.56099085,1854.2,1853.3,6.86042783]
[1771890772949,6.75668146,1854.1,1853.3,6.86042783]
[1771890773146,6.75668146,1854.0,1853.3,6.86042783]
[1771890773348,2.56099085,1854.2,1853.3,6.86042783]
[1771890773548,6.75701944,1854.1,1853.3,6.86042783]
[1771890773748,6.75701944,1854.0,1853.3,6.86042783]
[1771890773948,2.56099085,1854.2,1853.3,6.86042783]
[1771890774150,6.75701882,1854.1,1853.3,6.86042783]
[1771890774352,2.56099085,1854.2,1853.4,2.56099085]
[1771890774353,6.75701882,1854.0,1853.4,2.56099085]
[1771890774552,2.56099085,1854.2,1853.4,2.56099085]
[1771890774752,6.75759144,1854.1,1853.4,2.56099085]
[1771890775051,0.48351623,1854.0,1853.4,2.56099085]
[1771890775252,2.56099085,1854.2,1853.4,2.56099085]
[1771890775453,6.75840068,1854.1,1853.4,2.56099085]
[1771890775751,0.48357581,1854.0,1853.4,2.56099085]
[1771890775951,2.56099085,1854.2,1853.4,2.56099085]
[1771890776148,6.75961023,1854.1,1853.4,2.56099085]
[1771890776452,0.48366163,1854.0,1853.4,2.56099085]
[1771890776651,2.56099085,1854.2,1853.4,2.56099085]
[1771890776848,6.76036343,1854.1,1853.4,2.56099085]
[1771890777151,0.48371742,1854.0,1853.4,2.56099085]
[1771890777353,2.56099085,1854.2,1853.4,2.56099085]
[1771890777554,6.76126327,1854.1,1853.4,2.56099085]
[1771890777753,0.48378365,1854.0,1853.4,2.56099085]
[1771890777953,2.56099085,1854.2,1853.4,2.56099085]
[1771890778153,6.75498578,1854.1,1853.4,2.56099085]
[1771890778454,0.48333556,1854.0,1853.4,2.56099085]
[1771890778652,2.56099085,1854.2,1853.4,2.56099085]
[1771890778852,6.75724315,1854.1,1853.4,2.56099085]
[1771890779054,0.48350023,1854.0,1853.4,2.56099085]
[1771890779254,2.56099085,1854.2,1853.4,2.56099085]
[1771890779454,6.75831751,1854.1,1853.4,2.56099085]
[1771890779656,0.48357402,1854.0,1853.4,2.56099085]
[1771890779852,2.56099085,1854.2,1853.4,2.56099085]
[1771890780152,6.75838532,1854.1,1853.4,2.56099085]
[1771890780349,0.4835789,1854.0,1853.4,2.56099085]
[1771890780550,2.56099085,1854.2,1853.4,2.56099085]
[1771890780755,6.75862389,1854.1,1853.2,2.5676769]
[1771890780954,6.75862389,1854.0,1853.2,2.5676769]
[1771890781255,4.73827958,1854.3,1853.3,7.02271651]
[1771890781457,6.75887046,1854.2,1853.3,7.02271651]
[1771890781656,0.48359609,1854.1,1853.4,2.83187556]
[1771890781956,7.03057514,1854.6,1853.4,0.26985]
[1771890782253,6.75944676,1854.5,1853.4,0.26985]
[1771890782556,6.75944676,1854.4,1853.4,0.26985]
[1771890782757,6.75944676,1854.3,1853.4,0.26985]
[1771890782956,0.48363361,1854.2,1853.4,0.26985]
[1771890783157,7.03057514,1854.6,1853.4,0.26985]
[1771890783357,6.75776578,1854.5,1853.4,0.26985]
[1771890783556,6.75776578,1854.4,1853.4,0.26985]
[1771890783758,6.75776578,1854.3,1853.4,0.26985]
[1771890783959,0.48356057,1854.2,1853.4,0.26985]
[1771890784161,2.56202556,1854.4,1853.2,0.00668605]
[1771890784358,6.75708432,1854.3,1853.2,0.00668605]
[1771890784557,6.75708432,1854.2,1853.3,6.97668391]
[1771890784754,0.4835075,1854.1,1853.3,6.97668391]
[1771890784958,2.56202556,1854.4,1853.3,6.97668391]
[1771890785159,6.75507822,1854.3,1853.3,6.97668391]
[1771890785359,6.75507822,1854.2,1853.3,6.97668391]
[1771890785560,6.75507822,1854.1,1853.3,6.97668391]
[1771890785862,2.56202556,1854.4,1853.3,6.97668391]
[1771890786064,6.75679042,1854.3,1853.3,6.97668391]
[1771890786262,6.75679042,1854.2,1853.3,6.97668391]
[1771890786464,6.75679042,1854.1,1853.3,6.97668391]
[1771890786665,2.56202556,1854.4,1853.3,6.97668391]
[1771890786861,6.7569468,1854.3,1853.3,6.97668391]
[1771890787061,6.7569468,1854.2,1853.3,6.97668391]
[1771890787363,6.7569468,1854.1,1853.3,6.97668391]
[1771890787564,0.48350055,1854.0,1853.3,6.97668391]
[1771890787765,2.56202556,1854.4,1853.3,6.97668391]
[1771890787957,6.75702931,1854.3,1853.3,6.97668391]
[1771890788163,6.75702931,1854.2,1853.3,6.97668391]
[1771890788468,6.75702931,1854.1,1853.3,6.97668391]
[1771890788667,0.4835073,1854.0,1853.3,6.97668391]
[1771890788866,2.56202556,1854.4,1853.3,6.97668391]
[1771890789065,6.75705358,1854.3,1853.3,6.97668391]
[1771890789270,6.75705358,1854.2,1853.3,6.97668391]
[1771890789463,6.75705358,1854.1,1853.3,6.97668391]
[1771890789767,2.56202556,1854.4,1853.3,6.97668391]
[1771890789963,6.75836946,1854.3,1853.3,6.97668391]
[1771890790165,6.75836946,1854.2,1853.3,6.97668391]
[1771890790365,6.75836946,1854.1,1853.3,6.97668391]
[1771890790566,0.48362181,1854.0,1853.3,6.97668391]
[1771890790767,2.56202556,1854.4,1853.3,6.97668391]
[1771890790968,6.75850125,1854.3,1853.3,6.97668391]
[1771890791167,6.75850125,1854.2,1853.3,6.97668391]
[1771890791371,0.483627,1854.1,1853.3,9.53870947]
[1771890791663,4.73823958,1854.5,1853.3,9.53870947]
[1771890791968,6.75875621,1854.4,1853.3,9.53870947]
[1771890792169,6.75875621,1854.3,1853.3,9.53870947]
[1771890792365,6.75875621,1854.2,1853.3,9.53870947]
[1771890792569,0.48364073,1854.1,1853.3,9.53870947]
[1771890792768,4.73823958,1854.5,1853.3,9.53870947]
[1771890792968,6.75838894,1854.4,1853.3,9.53870947]
[1771890793164,6.75838894,1854.3,1853.3,9.53870947]
[1771890793371,6.75838894,1854.2,1853.3,9.53870947]
[1771890793567,4.73823958,1854.5,1853.3,9.53870947]
[1771890793770,6.75799358,1854.4,1853.3,9.53870947]
[1771890794070,6.75799358,1854.3,1853.3,9.53870947]
[1771890794272,6.75799358,1854.2,1853.3,9.53870947]
[1771890794472,4.73823958,1854.5,1853.3,9.53870947]
[1771890794670,6.75748042,1854.4,1853.3,9.53870947]
[1771890794869,6.75748042,1854.3,1853.3,9.53870947]
[1771890795169,6.75748042,1854.2,1853.3,9.53870947]
[1771890795370,4.73823958,1854.5,1853.3,9.53870947]
[1771890795571,6.7570257,1854.4,1853.3,9.53870947]
[1771890795771,6.7570257,1854.3,1853.3,9.53870947]
[1771890795970,6.7570257,1854.2,1853.3,9.53870947]
[1771890796170,0.26969,1854.5,1853.3,9.53870947]
[1771890796371,6.75675025,1854.4,1853.3,9.53870947]
[1771890796579,6.75675025,1854.3,1853.3,9.53870947]
[1771890796772,6.75675025,1854.2,1853.3,9.53870947]
[1771890796973,0.26969,1854.5,1853.3,9.53870947]
[1771890797169,6.75671766,1854.4,1853.3,9.53870947]
[1771890797370,6.75671766,1854.3,1853.3,9.53870947]
[1771890797672,0.48346585,1854.2,1853.3,9.53870947]
[1771890797869,0.26969,1854.5,1853.3,9.53870947]
[1771890798070,6.75913142,1854.4,1853.3,9.53870947]
[1771890798273,6.75913142,1854.3,1853.3,9.53870947]
[1771890798475,0.48349778,1854.2,1853.3,9.53870947]
[1771890798775,0.26969,1854.5,1853.3,9.53870947]
[1771890798972,6.75895062,1854.4,1853.3,9.53870947]
[1771890799171,6.75895062,1854.3,1853.3,9.53870947]
[1771890799372,0.48348105,1854.2,1853.3,9.53870947]
[1771890799573,0.26969,1854.5,1853.3,9.53870947]
[1771890799770,6.75882092,1854.4,1853.3,9.53870947]
[1771890799972,6.75882092,1854.3,1853.3,9.53870947]
[1771890800267,0.48346972,1854.2,1853.3,9.53870947]
[1771890800574,0.26969,1854.5,1853.3,9.53870947]
[1771890800875,6.75884715,1854.4,1853.3,9.53870947]
[1771890801073,6.75884715,1854.3,1853.3,9.53870947]
[1771890801275,0.48346886,1854.2,1853.3,9.53870947]
[1771890801577,0.26969,1854.5,1853.3,9.53870947]
[1771890801775,6.76055211,1854.4,1853.3,9.53870947]
[1771890801975,6.76055211,1854.3,1853.3,9.53870947]
[1771890802177,6.76076951,1854.2,1853.3,6.97668391]
[1771890802378,0.48358783,1854.1,1853.3,6.97668391]
[1771890802578,4.73823958,1854.5,1853.3,6.97668391]
[1771890802779,6.76063322,1854.4,1853.3,6.97668391]
[1771890803077,6.76063322,1854.3,1853.3,6.97668391]
[1771890803279,6.76063322,1854.2,1853.3,6.97668391]
[1771890803578,0.48361091,1854.1,1853.3,6.97668391]
[1771890803776,4.73823958,1854.5,1853.3,6.97668391]
[1771890803972,6.76107745,1854.4,1853.3,6.97668391]
[1771890804173,6.76107745,1854.3,1853.3,6.97668391]
[1771890804376,6.76107745,1854.2,1853.3,6.97668391]
[1771890804575,0.48364011,1854.1,1853.3,6.97668391]
[1771890804781,4.73823958,1854.5,1853.3,6.97668391]
[1771890804975,6.76158609,1854.4,1853.3,6.97668391]
[1771890805176,6.76158609,1854.3,1853.3,6.97668391]
[1771890805479,6.76158609,1854.2,1853.3,6.97668391]
[1771890805673,0.48367371,1854.1,1853.3,6.97668391]
[1771890805875,4.73823958,1854.5,1853.3,6.97668391]
[1771890806077,2.83176556,1854.2,1853.3,6.97668391]
[1771890806375,6.7618687,1854.1,1853.3,6.97668391]
[1771890806576,0.26974,1854.2,1853.3,6.97668391]
[1771890806779,6.76179168,1854.1,1853.3,6.97668391]
[1771890806977,0.26974,1854.2,1853.3,6.97668391]
[1771890807178,6.76191247,1854.1,1853.3,6.97668391]
[1771890807379,0.26974,1854.2,1853.3,6.97668391]
[1771890807578,6.76203739,1854.1,1853.3,6.97668391]
[1771890807779,0.26974,1854.2,1853.3,6.97668391]
[1771890807980,6.76204023,1854.1,1853.3,6.97668391]
[1771890808280,0.26974,1854.2,1853.3,6.97668391]
[1771890808480,6.7622757,1854.1,1853.3,6.97668391]
[1771890808680,0.26974,1854.2,1853.3,6.97668391]
[1771890808881,6.76227591,1854.1,1853.3,6.97668391]
[1771890809181,0.26974,1854.2,1853.3,6.97668391]
[1771890809377,0.48373391,1854.1,1853.3,6.97668391]
[1771890809681,4.46854958,1854.5,1853.3,6.97668391]
[1771890809883,6.76261716,1854.4,1853.3,6.97668391]
[1771890810082,6.76261716,1854.3,1853.3,6.97668391]
[1771890810275,6.76261716,1854.2,1853.3,6.97668391]
[1771890810478,6.76261716,1854.1,1853.3,6.97668391]
[1771890810678,0.2697,1854.4,1853.3,6.97668391]
[1771890810878,6.76279052,1854.3,1853.3,6.97668391]
[1771890811079,9.32481608,1854.2,1853.3,6.97668391]
[1771890811277,7.03254052,1854.1,1853.2,0.00668605]
[1771890811483,6.76279052,1854.0,1853.2,0.00668605]
[1771890811682,6.76279052,1853.9,1853.2,0.00668605]
[1771890811983,0.48375274,1853.8,1853.2,0.00668605]
[1771890812182,0.26975,1854.1,1853.2,0.00668605]
[1771890812483,6.76098043,1854.0,1853.2,0.00668605]
[1771890812683,6.76098043,1853.9,1853.2,0.00668605]
[1771890812882,0.48363126,1853.8,1853.2,0.00668605]
[1771890813183,0.26975,1854.1,1853.2,0.00668605]
[1771890813381,6.75950288,1854.0,1853.2,0.00668605]
[1771890813583,6.75950288,1853.9,1853.2,0.00668605]
[1771890813783,0.48353135,1853.8,1853.2,0.00668605]
[1771890813983,0.26975,1854.1,1853.2,0.00668605]
[1771890814280,6.75948001,1854.0,1853.2,0.00668605]
[1771890814479,6.75948001,1853.9,1853.2,0.00668605]
[1771890814679,0.26975,1854.1,1853.2,0.00668605]
[1771890814880,6.75826597,1854.0,1853.2,0.00668605]
[1771890815181,6.75826597,1853.9,1853.2,0.00668605]
[1771890815383,0.26975,1854.1,1853.2,0.00668605]